fUST/lending_fUST_20241231
["ID","MTS","AMOUNT","RATE_DAILY","PERIOD"]
[347273052,1735647047838,-348.06112027,0.00021917,3]
[347273053,1735647047848,-500.0,0.00021917,3]
[347273054,1735647047858,-500.0,0.00021917,3]
[347273055,1735647047867,-235.30551989,0.00021917,3]
[347273056,1735647047881,-264.69448011,0.00021917,3]
[347273057,1735647047891,-500.0,0.00021917,3]
[347273058,1735647047904,-310.7823922,0.00021917,3]
[347273059,1735647047914,-500.0,0.00021917,3]
[347273060,1735647047924,-403.79829746,0.00021917,3]
[347273061,1735647047934,-1087.44,0.00021917,3]
[347273062,1735647047943,-489.38720383,0.00021917,3]
[347273063,1735647047955,-500.0,0.00021917,3]
[347273064,1735647047966,-696.54,0.00021917,3]
[347273065,1735647047976,-500.0,0.00021917,3]
[347273066,1735647047986,-533.82,0.00021917,3]
[347273067,1735647047996,-500.0,0.00021917,3]
[347273068,1735647048006,-500.0,0.00021917,3]
[347273069,1735647048016,-2213.91,0.00021917,3]
[347273070,1735647048026,-979.24,0.00021917,3]
[347273071,1735647048036,-1247.02,0.00021917,3]
[347273072,1735647048046,-914.88,0.00021917,3]
[347273073,1735647048056,-500.0,0.00021917,3]
[347273074,1735647048067,-500.0,0.00021917,3]
[347273075,1735647048077,-500.0,0.00021917,3]
[347273076,1735647048087,-500.0,0.00021917,3]
[347273077,1735647048097,-573.25,0.00021917,3]
[347273078,1735647048107,-5622.34890678,0.00021917,3]
[347273079,1735647048135,-500.0,0.00019452,3]
[347273080,1735647048146,-288.53236431,0.00019726,3]
[347273081,1735647048156,-2084.23,0.00021643,3]
[347273082,1735647048165,-2950.22109322,0.00021917,3]
[347273083,1735647048174,-150.15,0.00022,2]
[347273084,1735647048184,-150.15,0.00022,2]
[347273085,1735647048194,-207.16731737,0.00022155,2]
[347273086,1735647048204,-500.0,0.00022155,2]
[347273087,1735647048215,-426.55992252,0.00022155,2]
[347273088,1735647048225,-500.0,0.00022155,2]
[347273089,1735647048235,-501.52028398,0.00022155,2]
[347273090,1735647048246,-4346.84795354,0.00022155,2]
[347273091,1735647048255,-6202.83806733,0.00022155,2]
[347273092,1735647048265,-32022.06199468,0.00022156,10]
[347273093,1735647048275,-47579.91344436,0.00022156,10]
[347273094,1735647048287,-976.78196567,0.00022156,10]
[347273095,1735647048370,-500.0,0.00019178,2]
[347273096,1735647048380,-2084.23,0.00021917,3]
[347273097,1735647048390,-12392.84280885,0.00022156,10]
[347273098,1735647048402,-1166813.84419791,0.00022156,10]
[347273099,1735647048413,-262011.95835248,0.00022156,10]
[347273100,1735647048422,-378200.16728061,0.00022156,10]
[347273101,1735647048432,-368688.80477832,0.00022156,10]
[347273102,1735647048441,-1693642.6469405,0.00022156,10]
[347273103,1735647048451,-363316.80242157,0.00022156,10]
[347273104,1735647048461,-491640.71573847,0.00022156,10]
[347273105,1735647048471,-186257.42573346,0.00022156,10]
[347273108,1735648063783,-298.46852,0.00012636,2]
[347273109,1735648063826,-298.46852,0.00012764,2]
[347273110,1735648063866,-298.46852,0.00013973,2]
[347273112,1735648107988,104.59444,0.000138,2]
[347273113,1735648117454,-14722.45414963,0.000138,2]
[347273117,1735648131570,1000.0,0.00010203,2]
[347273118,1735648131604,294.98,0.00010203,2]
[347273162,1735648232543,-269.55734617,0.00014114,2]
[347273163,1735648232553,-542.87725865,0.000149,2]
[347273164,1735648232562,-168.538572,0.00016211,2]
[347273165,1735648232570,-168.538572,0.0001622,2]
[347273166,1735648232579,-168.538572,0.00016228,2]
[347273167,1735648232588,-168.538572,0.00016236,2]
[347273168,1735648232598,-168.538572,0.00016244,2]
[347273169,1735648232608,-5176.755206,0.00016307,2]
[347273170,1735648232616,-250.0,0.00016348,2]
[347273171,1735648232626,-308.0188143,0.00016434,2]
[347273172,1735648232635,-2217.74249224,0.00017,2]
[347273173,1735648232647,-5000.0,0.00017042,2]
[347273174,1735648232664,-300.0,0.00017213,2]
[347273175,1735648232674,-5000.0,0.00017214,2]
[347273176,1735648232683,-920.9208635,0.00017388,2]
[347273177,1735648232692,-205.3155103,0.00017663,2]
[347273179,1735648232703,-151.64825346,0.000179,2]
[347273180,1735648232712,-24900.0,0.00017913,2]
[347273181,1735648232721,-9771.19112275,0.00018,2]
[347273182,1735648232731,-455.2879824,0.00018176,2]
[347273183,1735648232740,-196.26215048,0.00018696,2]
[347273184,1735648232750,-420.0,0.00018796,2]
[347273185,1735648232759,-500.0,0.00019173,2]
[347273186,1735648232768,-316.96,0.00019177,2]
[347273187,1735648232778,-196.8672722,0.00019177,2]
[347273188,1735648232788,-320.79362068,0.00019178,2]
[347273189,1735648232797,-348.23845113,0.00019178,2]
[347273190,1735648232807,-500.0,0.00019178,2]
[347273191,1735648232816,-500.0,0.00019178,2]
[347273192,1735648232826,-500.0,0.00019178,2]
[347273193,1735648232835,-1000.0,0.00019178,2]
[347273194,1735648232844,-500.0,0.00019178,2]
[347273195,1735648232854,-502.10794084,0.00019178,2]
[347273196,1735648232864,-500.0,0.00019178,2]
[347273197,1735648232874,-500.0,0.00019178,2]
[347273198,1735648232981,-500.0,0.00019178,2]
[347273199,1735648232991,-500.0,0.00019178,2]
[347273200,1735648233002,-500.0,0.00019178,2]
[347273201,1735648233013,-500.0,0.00019178,2]
[347273202,1735648233022,-500.0,0.00019178,2]
[347273204,1735648233032,-500.0,0.00019178,2]
[347273205,1735648233042,-500.0,0.00019178,2]
[347273206,1735648233053,-455.0,0.00019178,2]
[347273207,1735648233063,-500.0,0.00019178,2]
[347273208,1735648233074,-500.0,0.00019178,2]
[347273209,1735648233084,-175.85673067,0.00019178,2]
[347273210,1735648233095,-500.0,0.00019178,2]
[347273211,1735648233105,-500.0,0.00019178,2]
[347273212,1735648233115,-500.0,0.00019178,2]
[347273213,1735648233125,-503.98295423,0.00019178,2]
[347273214,1735648233135,-500.0,0.00019178,2]
[347273215,1735648233145,-500.0,0.00019178,2]
[347273216,1735648233156,-500.0,0.00019178,2]
[347273217,1735648233165,-500.0,0.00019178,2]
[347273218,1735648233175,-500.0,0.00019178,2]
[347273219,1735648233185,-500.0,0.00019178,2]
[347273220,1735648233196,-500.0,0.00019178,2]
[347273221,1735648233206,-500.0,0.00019178,2]
[347273222,1735648233217,-500.0,0.00019178,2]
[347273223,1735648233227,-500.0,0.00019178,2]
[347273224,1735648233237,-500.0,0.00019178,2]
[347273225,1735648233247,-500.0,0.00019178,2]
[347273226,1735648233257,-500.0,0.00019178,2]
[347273227,1735648233266,-500.0,0.00019178,2]
[347273228,1735648233276,-500.0,0.00019178,2]
[347273229,1735648233287,-500.0,0.00019178,2]
[347273230,1735648233297,-503.14849776,0.00019178,2]
[347273231,1735648233308,-500.0,0.00019178,2]
[347273232,1735648233318,-508.23314373,0.00019178,2]
[347273233,1735648233329,-500.0,0.00019178,2]
[347273234,1735648233338,-500.0,0.00019178,2]
[347273235,1735648233348,-500.0,0.00019178,2]
[347273236,1735648233358,-500.0,0.00019178,2]
[347273237,1735648233368,-233.29200516,0.00019178,2]
[347273238,1735648233378,-500.0,0.00019178,2]
[347273239,1735648233387,-632.38420102,0.00019178,2]
[347273240,1735648233397,-500.0,0.00019178,2]
[347273241,1735648233406,-500.0,0.00019178,2]
[347273242,1735648233415,-534.58698682,0.00019178,2]
[347273243,1735648233425,-500.0,0.00019178,2]
[347273244,1735648233435,-500.0,0.00019178,2]
[347273245,1735648233445,-500.0,0.00019178,2]
[347273246,1735648233455,-760.38,0.00019178,2]
[347273247,1735648233465,-500.0,0.00019178,2]
[347273248,1735648233475,-232.9285885,0.00019178,2]
[347273249,1735648233485,-500.0,0.00019178,2]
[347273250,1735648233494,-500.0,0.00019178,2]
[347273251,1735648233504,-500.0,0.00019178,2]
[347273252,1735648233513,-500.0,0.00019178,2]
[347273253,1735648233523,-500.0,0.00019178,2]
[347273254,1735648233533,-500.0,0.00019178,2]
[347273255,1735648233543,-500.0,0.00019178,2]
[347273256,1735648233552,-500.0,0.00019178,2]
[347273257,1735648233562,-500.0,0.00019178,2]
[347273258,1735648233571,-500.0,0.00019178,2]
[347273259,1735648233581,-500.0,0.00019178,2]
[347273260,1735648233590,-500.0,0.00019178,2]
[347273261,1735648233599,-500.0,0.00019178,2]
[347273262,1735648233608,-500.0,0.00019178,2]
[347273263,1735648233618,-500.0,0.00019178,2]
[347273264,1735648233627,-500.0,0.00019178,2]
[347273265,1735648233637,-315.88,0.00019178,2]
[347273266,1735648233650,-500.0,0.00019178,2]
[347273267,1735648233660,-500.0,0.00019178,2]
[347273268,1735648233670,-500.0,0.00019178,2]
[347273269,1735648233680,-500.0,0.00019178,2]
[347273270,1735648233690,-500.0,0.00019178,2]
[347273271,1735648233700,-568.84,0.00019178,2]
[347273272,1735648233711,-500.0,0.00019178,2]
[347273273,1735648233721,-500.0,0.00019178,2]
[347273274,1735648233732,-500.0,0.00019178,2]
[347273275,1735648233742,-500.0,0.00019178,2]
[347273276,1735648233752,-758.03,0.00019178,2]
[347273277,1735648233762,-500.0,0.00019178,2]
[347273278,1735648233773,-1264.6,0.00019178,2]
[347273279,1735648233783,-500.0,0.00019178,2]
[347273280,1735648233793,-500.0,0.00019178,2]
[347273281,1735648233803,-500.0,0.00019178,2]
[347273282,1735648233814,-500.0,0.00019178,2]
[347273283,1735648233824,-500.0,0.00019178,2]
[347273284,1735648233834,-500.0,0.00019178,2]
[347273285,1735648233843,-607.68,0.00019178,2]
[347273286,1735648233854,-500.0,0.00019178,2]
[347273287,1735648233863,-500.0,0.00019178,2]
[347273288,1735648233872,-500.0,0.00019178,2]
[347273289,1735648233881,-500.0,0.00019178,2]
[347273290,1735648233890,-500.0,0.00019178,2]
[347273291,1735648233899,-500.0,0.00019178,2]
[347273292,1735648233909,-500.0,0.00019178,2]
[347273293,1735648233920,-500.0,0.00019178,2]
[347273294,1735648233930,-500.0,0.00019178,2]
[347273295,1735648233940,-500.0,0.00019178,2]
[347273296,1735648233949,-500.0,0.00019178,2]
[347273297,1735648233958,-500.0,0.00019178,2]
[347273298,1735648233968,-1000.0,0.00019178,2]
[347273299,1735648233977,-500.0,0.00019178,2]
[347273300,1735648233987,-500.0,0.00019178,2]
[347273301,1735648233997,-500.0,0.00019178,2]
[347273302,1735648234007,-500.0,0.00019178,2]
[347273303,1735648234017,-500.0,0.00019178,2]
[347273304,1735648234028,-500.0,0.00019178,2]
[347273305,1735648234038,-500.0,0.00019178,2]
[347273306,1735648234047,-500.0,0.00019178,2]
[347273307,1735648234056,-500.0,0.00019178,2]
[347273308,1735648234066,-6061.59,0.00019178,2]
[347273309,1735648234077,-500.0,0.00019178,2]
[347273310,1735648234087,-500.0,0.00019178,2]
[347273311,1735648234097,-569.93,0.00019178,2]
[347273312,1735648234107,-502.51270683,0.00019178,2]
[347273313,1735648234116,-502.45775699,0.00019178,2]
[347273314,1735648234126,-500.0,0.00019178,2]
[347273315,1735648234137,-500.0,0.00019178,2]
[347273316,1735648234147,-500.0,0.00019178,2]
[347273317,1735648234158,-530.19299482,0.00019178,2]
[347273318,1735648234168,-500.0,0.00019178,2]
[347273319,1735648234178,-500.0,0.00019178,2]
[347273320,1735648234188,-2575.91,0.00019178,2]
[347273321,1735648234198,-500.0,0.00019178,2]
[347273322,1735648234208,-500.0,0.00019178,2]
[347273323,1735648234218,-500.0,0.00019178,2]
[347273324,1735648234228,-500.0,0.00019178,2]
[347273325,1735648234238,-689.18,0.00019178,2]
[347273326,1735648234248,-150.0,0.00019178,2]
[347273327,1735648234257,-500.0,0.00019451,3]
[347273328,1735648234267,-500.0,0.00019452,3]
[347273329,1735648234277,-500.0,0.00019452,3]
[347273330,1735648234286,-500.0,0.00019452,3]
[347273331,1735648234296,-500.0,0.00019452,3]
[347273332,1735648234305,-500.0,0.00019452,3]
[347273333,1735648234316,-500.0,0.00019452,3]
[347273334,1735648234326,-500.0,0.00019452,3]
[347273335,1735648234337,-500.0,0.00019452,3]
[347273336,1735648234347,-500.0,0.00019452,3]
[347273337,1735648234358,-500.0,0.00019452,3]
[347273338,1735648234368,-500.0,0.00019452,3]
[347273339,1735648234378,-500.0,0.00019452,3]
[347273340,1735648234388,-500.0,0.00019452,3]
[347273341,1735648234399,-500.0,0.00019452,3]
[347273342,1735648234410,-500.0,0.00019452,3]
[347273343,1735648234420,-760.38,0.00019452,3]
[347273344,1735648234430,-500.0,0.00019452,3]
[347273345,1735648234440,-500.0,0.00019452,3]
[347273346,1735648234449,-500.0,0.00019452,3]
[347273347,1735648234459,-500.0,0.00019452,3]
[347273348,1735648234469,-500.0,0.00019452,3]
[347273349,1735648234480,-500.0,0.00019452,3]
[347273350,1735648234490,-500.0,0.00019452,3]
[347273351,1735648234500,-758.03,0.00019452,3]
[347273352,1735648234510,-1264.6,0.00019452,3]
[347273353,1735648234519,-607.68,0.00019452,3]
[347273354,1735648234530,-500.0,0.00019452,3]
[347273355,1735648234539,-500.0,0.00019452,3]
[347273356,1735648234549,-500.0,0.00019452,3]
[347273357,1735648234559,-6061.59,0.00019452,3]
[347273358,1735648234568,-500.0,0.00019452,3]
[347273359,1735648234578,-505.08678835,0.00019452,3]
[347273360,1735648234588,-569.93,0.00019452,3]
[347273361,1735648234598,-500.0,0.00019452,3]
[347273362,1735648234608,-500.0,0.00019452,3]
[347273363,1735648234618,-500.0,0.00019452,3]
[347273364,1735648234628,-2575.91,0.00019452,3]
[347273365,1735648234638,-500.0,0.00019452,3]
[347273366,1735648234652,-689.18,0.00019452,3]
[347273367,1735648234663,-1009.69685627,0.00019721,2]
[347273368,1735648234672,-500.0,0.00019725,3]
[347273369,1735648234681,-500.0,0.00019725,3]
[347273370,1735648234692,-500.0,0.00019726,3]
[347273371,1735648234703,-538.55376025,0.00019726,3]
[347273372,1735648234713,-500.0,0.00019726,3]
[347273373,1735648234725,-500.0,0.00019726,3]
[347273374,1735648234736,-351.33,0.00019726,3]
[347273375,1735648234747,-500.0,0.00019726,3]
[347273376,1735648234757,-500.0,0.00019726,3]
[347273377,1735648234766,-500.0,0.00019726,3]
[347273378,1735648234776,-500.0,0.00019726,3]
[347273379,1735648234786,-500.0,0.00019726,3]
[347273380,1735648234796,-760.38,0.00019726,3]
[347273381,1735648234805,-500.0,0.00019726,3]
[347273382,1735648234814,-500.0,0.00019726,3]
[347273383,1735648234824,-500.0,0.00019726,3]
[347273384,1735648234835,-500.0,0.00019726,3]
[347273385,1735648234844,-500.0,0.00019726,3]
[347273386,1735648234854,-500.0,0.00019726,3]
[347273387,1735648234864,-758.03,0.00019726,3]
[347273388,1735648234874,-1264.6,0.00019726,3]
[347273389,1735648234884,-607.68,0.00019726,3]
[347273390,1735648234893,-500.0,0.00019726,3]
[347273391,1735648234904,-500.0,0.00019726,3]
[347273392,1735648234914,-6061.59,0.00019726,3]
[347273393,1735648234923,-500.0,0.00019726,3]
[347273394,1735648234933,-569.93,0.00019726,3]
[347273395,1735648234942,-500.0,0.00019726,3]
[347273396,1735648234952,-2575.91,0.00019726,3]
[347273397,1735648234961,-500.0,0.00019726,3]
[347273398,1735648234971,-689.18,0.00019726,3]
[347273399,1735648234981,-500.0,0.00019999,3]
[347273400,1735648234991,-500.0,0.0002,3]
[347273401,1735648235000,-500.0,0.0002,3]
[347273402,1735648235009,-500.0,0.0002,3]
[347273403,1735648235019,-500.0,0.0002,3]
[347273404,1735648235029,-500.0,0.0002,3]
[347273405,1735648235038,-500.0,0.0002,3]
[347273406,1735648235047,-500.0,0.0002,3]
[347273407,1735648235057,-500.0,0.0002,3]
[347273408,1735648235067,-760.38,0.0002,3]
[347273409,1735648235076,-500.0,0.0002,3]
[347273410,1735648235085,-500.0,0.0002,3]
[347273411,1735648235094,-500.0,0.0002,3]
[347273412,1735648235103,-235.24836903,0.0002,3]
[347273413,1735648235113,-522.5,0.0002,3]
[347273414,1735648235121,-500.0,0.0002,3]
[347273415,1735648235131,-758.03,0.0002,3]
[347273416,1735648235140,-1264.6,0.0002,3]
[347273417,1735648235150,-607.68,0.0002,3]
[347273418,1735648235159,-500.0,0.0002,3]
[347273419,1735648235169,-500.0,0.0002,3]
[347273420,1735648235178,-3917.39828299,0.0002,3]
[347273438,1735648238568,-168.538572,0.0001609,2]
[347273440,1735648238578,-168.538572,0.00016252,2]
[347273442,1735648238587,-168.538572,0.0001626,2]
[347273444,1735648238596,-168.538572,0.00016268,2]
[347273446,1735648238606,-168.538572,0.00016276,2]
[347273448,1735648238615,-168.538572,0.00016284,2]
[347273450,1735648238624,-168.538572,0.00016293,2]
[347273452,1735648238634,-2144.19171701,0.0002,3]
[347273454,1735648238644,-500.0,0.0002,3]
[347273456,1735648238657,-569.93,0.0002,3]
[347273458,1735648238667,-500.0,0.0002,3]
[347273460,1735648238676,-2575.91,0.0002,3]
[347273462,1735648238686,-500.0,0.0002,3]
[347273464,1735648238696,-689.18,0.0002,3]
[347273465,1735648238706,-500.0,0.00020271,2]
[347273466,1735648238715,-500.0,0.00020271,2]
[347273467,1735648238725,-500.0,0.00020271,2]
[347273468,1735648238734,-500.0,0.00020271,2]
[347273469,1735648238744,-623.13756469,0.00020271,2]
[347273470,1735648238753,-500.0,0.00020271,2]
[347273471,1735648238763,-183.48046466,0.00020271,2]
[347273472,1735648238773,-300.0,0.00020271,2]
[347273473,1735648238783,-500.0,0.00020271,2]
[347273474,1735648238793,-500.0,0.00020271,2]
[347273475,1735648238802,-500.0,0.00020271,2]
[347273476,1735648238812,-500.0,0.00020271,2]
[347273477,1735648238821,-500.0,0.00020271,2]
[347273478,1735648238831,-500.0,0.00020271,2]
[347273479,1735648238840,-500.0,0.00020271,2]
[347273480,1735648238849,-500.0,0.00020271,2]
[347273481,1735648238858,-500.0,0.00020271,2]
[347273482,1735648238868,-500.0,0.00020271,2]
[347273483,1735648238877,-624.66391204,0.00020271,2]
[347273484,1735648238886,-500.0,0.00020271,2]
[347273485,1735648238895,-500.0,0.00020271,2]
[347273486,1735648238905,-500.0,0.00020271,2]
[347273487,1735648238914,-250.92084864,0.00020272,3]
[347273488,1735648238923,-500.0,0.00020273,3]
[347273489,1735648238932,-500.0,0.00020273,3]
[347273490,1735648238942,-500.0,0.00020273,3]
[347273491,1735648238950,-500.0,0.00020273,3]
[347273492,1735648238960,-500.0,0.00020273,3]
[347273493,1735648238969,-500.0,0.00020273,3]
[347273494,1735648238979,-500.0,0.00020273,3]
[347273495,1735648238988,-760.38,0.00020273,3]
[347273496,1735648238997,-500.0,0.00020273,3]
[347273497,1735648239006,-500.0,0.00020273,3]
[347273498,1735648239016,-500.0,0.00020273,3]
[347273499,1735648239026,-500.0,0.00020273,3]
[347273500,1735648239035,-758.03,0.00020273,3]
[347273501,1735648239045,-1264.6,0.00020273,3]
[347273502,1735648239054,-607.68,0.00020273,3]
[347273503,1735648239064,-500.0,0.00020273,3]
[347273504,1735648239073,-6061.59,0.00020273,3]
[347273505,1735648239082,-500.0,0.00020273,3]
[347273506,1735648239093,-569.93,0.00020273,3]
[347273507,1735648239102,-500.0,0.00020273,3]
[347273508,1735648239112,-2575.91,0.00020273,3]
[347273509,1735648239121,-500.0,0.00020273,3]
[347273510,1735648239130,-689.18,0.00020273,3]
[347273511,1735648239140,-394.0,0.00020308,2]
[347273512,1735648239149,-298.46852,0.00020447,2]
[347273513,1735648239160,-587.0,0.00020525,2]
[347273514,1735648239170,-500.0,0.00020547,3]
[347273515,1735648239179,-500.0,0.00020547,3]
[347273516,1735648239189,-500.0,0.00020547,3]
[347273517,1735648239199,-500.0,0.00020547,3]
[347273518,1735648239209,-500.0,0.00020547,3]
[347273519,1735648239218,-500.0,0.00020547,3]
[347273520,1735648239228,-500.0,0.00020547,3]
[347273521,1735648239237,-760.38,0.00020547,3]
[347273522,1735648239247,-500.0,0.00020547,3]
[347273523,1735648239257,-500.0,0.00020547,3]
[347273524,1735648239266,-500.0,0.00020547,3]
[347273525,1735648239276,-500.0,0.00020547,3]
[347273526,1735648239286,-758.03,0.00020547,3]
[347273527,1735648239295,-1264.6,0.00020547,3]
[347273528,1735648239305,-607.68,0.00020547,3]
[347273529,1735648239314,-500.0,0.00020547,3]
[347273530,1735648239323,-6061.59,0.00020547,3]
[347273531,1735648239332,-500.0,0.00020547,3]
[347273532,1735648239341,-569.93,0.00020547,3]
[347273533,1735648239351,-500.0,0.00020547,3]
[347273534,1735648239360,-2575.91,0.00020547,3]
[347273535,1735648239370,-500.0,0.00020547,3]
[347273536,1735648239380,-689.18,0.00020547,3]
[347273537,1735648239390,-153.0,0.00020585,2]
[347273538,1735648239400,-153.0,0.00020585,2]
[347273539,1735648239410,-153.0,0.00020585,2]
[347273540,1735648239419,-153.0,0.00020585,2]
[347273541,1735648239428,-153.0,0.00020585,2]
[347273542,1735648239438,-153.0,0.00020585,2]
[347273543,1735648239447,-153.0,0.00020585,2]
[347273544,1735648239457,-153.0,0.00020585,2]
[347273545,1735648239466,-153.0,0.00020585,2]
[347273546,1735648239475,-153.0,0.00020585,2]
[347273547,1735648239485,-153.0,0.00020585,2]
[347273548,1735648239494,-153.0,0.00020585,2]
[347273549,1735648239505,-153.0,0.00020585,2]
[347273550,1735648239514,-153.0,0.00020585,2]
[347273551,1735648239523,-153.0,0.00020585,2]
[347273552,1735648239533,-153.0,0.00020585,2]
[347273553,1735648239543,-153.0,0.00020585,2]
[347273554,1735648239553,-153.0,0.00020585,2]
[347273555,1735648239562,-153.0,0.00020585,2]
[347273556,1735648239571,-153.0,0.00020585,2]
[347273557,1735648239580,-153.0,0.00020585,2]
[347273558,1735648239589,-153.0,0.00020585,2]
[347273559,1735648239598,-153.0,0.00020585,2]
[347273560,1735648239607,-153.0,0.00020585,2]
[347273561,1735648239616,-153.0,0.00020585,2]
[347273562,1735648239626,-153.0,0.00020585,2]
[347273563,1735648239635,-153.0,0.00020585,2]
[347273564,1735648239645,-153.0,0.00020585,2]
[347273565,1735648239660,-153.0,0.00020585,2]
[347273566,1735648239669,-153.0,0.00020585,2]
[347273567,1735648239680,-153.0,0.00020585,2]
[347273568,1735648239690,-153.0,0.00020585,2]
[347273569,1735648239701,-153.0,0.00020585,2]
[347273570,1735648239710,-153.0,0.00020585,2]
[347273571,1735648239722,-153.0,0.00020585,2]
[347273572,1735648239735,-153.0,0.00020585,2]
[347273573,1735648239745,-153.0,0.00020585,2]
[347273574,1735648239755,-153.0,0.00020585,2]
[347273575,1735648239764,-153.0,0.00020585,2]
[347273576,1735648239773,-153.0,0.00020585,2]
[347273577,1735648239784,-153.0,0.00020585,2]
[347273578,1735648239793,-153.0,0.00020585,2]
[347273579,1735648239803,-153.0,0.00020585,2]
[347273580,1735648239812,-153.0,0.00020585,2]
[347273581,1735648239821,-153.0,0.00020585,2]
[347273582,1735648239830,-153.0,0.00020585,2]
[347273583,1735648239840,-153.0,0.00020585,2]
[347273584,1735648239850,-153.0,0.00020585,2]
[347273585,1735648239859,-153.0,0.00020585,2]
[347273586,1735648239869,-153.0,0.00020585,2]
[347273587,1735648239879,-153.0,0.00020585,2]
[347273588,1735648239888,-153.0,0.00020585,2]
[347273589,1735648239898,-153.0,0.00020585,2]
[347273590,1735648239907,-153.0,0.00020585,2]
[347273591,1735648239917,-153.0,0.00020585,2]
[347273592,1735648239926,-153.0,0.00020585,2]
[347273593,1735648239936,-153.0,0.00020585,2]
[347273594,1735648239945,-34.09450264,0.00020585,2]
[347273596,1735648240061,-118.90549736,0.00020585,2]
[347273597,1735648240071,-153.0,0.00020585,2]
[347273598,1735648240081,-153.0,0.00020585,2]
[347273599,1735648240090,-153.0,0.00020585,2]
[347273600,1735648240100,-153.0,0.00020585,2]
[347273601,1735648240109,-153.0,0.00020585,2]
[347273602,1735648240119,-153.0,0.00020585,2]
[347273603,1735648240128,-500.0,0.00020821,3]
[347273604,1735648240137,-500.0,0.00020821,3]
[347273607,1735648240146,-500.0,0.00020821,3]
[347273609,1735648240155,-500.0,0.00020821,3]
[347273610,1735648240165,-500.0,0.00020821,3]
[347273611,1735648240174,-500.0,0.00020821,3]
[347273612,1735648240184,-500.0,0.00020821,3]
[347273613,1735648240193,-760.38,0.00020821,3]
[347273614,1735648240202,-500.0,0.00020821,3]
[347273615,1735648240212,-500.0,0.00020821,3]
[347273616,1735648240221,-500.0,0.00020821,3]
[347273617,1735648240231,-500.0,0.00020821,3]
[347273618,1735648240240,-758.03,0.00020821,3]
[347273619,1735648240250,-1264.6,0.00020821,3]
[347273620,1735648240260,-607.68,0.00020821,3]
[347273621,1735648240270,-500.0,0.00020821,3]
[347273622,1735648240280,-6061.59,0.00020821,3]
[347273623,1735648240290,-500.0,0.00020821,3]
[347273624,1735648240300,-569.93,0.00020821,3]
[347273625,1735648240311,-500.0,0.00020821,3]
[347273626,1735648240321,-2575.91,0.00020821,3]
[347273627,1735648240331,-500.0,0.00020821,3]
[347273628,1735648240340,-689.18,0.00020821,3]
[347273629,1735648240352,-153.0,0.00020853,2]
[347273630,1735648240361,-153.0,0.00020853,2]
[347273631,1735648240371,-153.0,0.00020853,2]
[347273632,1735648240381,-153.0,0.00020853,2]
[347273633,1735648240390,-153.0,0.00020853,2]
[347273634,1735648240400,-153.0,0.00020853,2]
[347273635,1735648240410,-153.0,0.00020853,2]
[347273636,1735648240420,-153.0,0.00020853,2]